fUSD/lending_fUSD_20250211
["ID","MTS","AMOUNT","RATE_DAILY","PERIOD"]
[352703721,1739256648155,-500.0,0.00011369,2]
[352703722,1739256648168,-500.0,0.00011369,2]
[352703723,1739256648178,-500.0,0.00011369,2]
[352703724,1739256648190,-500.0,0.00011369,2]
[352703725,1739256648204,-500.0,0.00011369,2]
[352703726,1739256648214,-500.0,0.00011369,2]
[352703727,1739256648225,-500.0,0.00011369,2]
[352703728,1739256648235,-500.0,0.00011369,2]
[352703729,1739256648246,-500.0,0.00011369,2]
[352703730,1739256648256,-500.0,0.00011369,2]
[352703731,1739256648267,-500.0,0.00011369,2]
[352703732,1739256648278,-500.0,0.00011369,2]
[352703733,1739256648289,-500.0,0.00011369,2]
[352703734,1739256648300,-500.0,0.00011369,2]
[352703735,1739256648310,-500.0,0.00011369,2]
[352703736,1739256648319,-500.0,0.00011369,2]
[352703737,1739256648328,-500.0,0.00011369,2]
[352703738,1739256648338,-500.0,0.00011369,2]
[352703739,1739256648349,-500.0,0.00011369,2]
[352703740,1739256648359,-500.0,0.00011369,2]
[352703741,1739256648371,-500.0,0.00011369,2]
[352703742,1739256648381,-500.0,0.00011369,2]
[352703743,1739256648391,-500.0,0.00011369,2]
[352703744,1739256648401,-500.0,0.00011369,2]
[352703745,1739256648411,-500.0,0.00011369,2]
[352703746,1739256648423,-500.0,0.00011369,2]
[352703747,1739256648432,-500.0,0.00011369,2]
[352703748,1739256648443,-500.0,0.00011369,2]
[352703749,1739256648454,-500.0,0.00011369,2]
[352703750,1739256648464,-500.0,0.00011369,2]
[352703751,1739256648476,-500.0,0.00011369,2]
[352703752,1739256648487,-500.0,0.00011369,2]
[352703753,1739256648498,-500.0,0.00011369,2]
[352703754,1739256648510,-968.0,0.00011369,2]
[352703755,1739256648522,-500.0,0.00011369,2]
[352703756,1739256648533,-883.66,0.00011369,2]
[352703757,1739256648543,-311.53886809,0.00011369,2]
[352703758,1739256648554,-500.0,0.00011369,2]
[352703759,1739256648565,-594.24,0.00011369,2]
[352703760,1739256648577,-896.62,0.00011369,2]
[352703761,1739256648588,-500.0,0.00011369,2]
[352703762,1739256648598,-500.0,0.00011369,7]
[352703763,1739256648610,-500.0,0.00011369,2]
[352703764,1739256648622,-500.0,0.00011369,2]
[352703765,1739256648634,-959.02,0.00011369,2]
[352703766,1739256648644,-500.0,0.00011369,2]
[352703767,1739256648655,-640.45,0.00011369,2]
[352703768,1739256648666,-500.0,0.00011369,2]
[352703769,1739256648676,-500.0,0.00011369,2]
[352703770,1739256648690,-500.0,0.00011369,2]
[352703771,1739256648701,-565.56,0.00011369,2]
[352703772,1739256648711,-500.0,0.00011369,2]
[352703773,1739256648721,-511.17,0.00011369,2]
[352703774,1739256648734,-572.72,0.00011369,2]
[352703775,1739256648745,-500.0,0.00011369,2]
[352703776,1739256648755,-500.0,0.00011369,2]
[352703777,1739256648768,-500.0,0.00011369,2]
[352703778,1739256648780,-500.0,0.00011369,2]
[352703779,1739256648791,-500.0,0.00011369,2]
[352703780,1739256648802,-500.0,0.00011369,2]
[352703781,1739256648812,-500.0,0.00011369,2]
[352703782,1739256648823,-500.0,0.00011369,2]
[352703783,1739256648834,-500.0,0.00011369,2]
[352703784,1739256648844,-500.0,0.00011369,2]
[352703785,1739256648854,-500.0,0.00011369,2]
[352703786,1739256648864,-500.0,0.00011369,2]
[352703787,1739256648874,-630.89,0.00011369,2]
[352703788,1739256648884,-500.0,0.00011369,2]
[352703789,1739256648894,-500.0,0.00011369,2]
[352703790,1739256648904,-500.0,0.00011369,2]
[352703791,1739256648914,-500.0,0.00011369,2]
[352703792,1739256648924,-500.0,0.00011369,2]
[352703793,1739256648934,-500.0,0.00011369,2]
[352703794,1739256648944,-544.67,0.00011369,2]
[352703795,1739256648954,-500.0,0.00011369,2]
[352703796,1739256648964,-659.93,0.00011369,2]
[352703797,1739256648973,-774.17,0.00011369,2]
[352703798,1739256648983,-1065.27,0.00011369,2]
[352703799,1739256648994,-1000.0,0.00011369,2]
[352703800,1739256649004,-500.0,0.00011369,2]
[352703801,1739256649014,-1196.98,0.00011369,2]
[352703802,1739256649023,-500.0,0.00011369,2]
[352703803,1739256649034,-500.0,0.00011369,2]
[352703804,1739256649044,-1537.1,0.00011369,2]
[352703805,1739256649054,-500.0,0.00011369,2]
[352703806,1739256649063,-1837.17,0.00011369,2]
[352703807,1739256649074,-500.0,0.00011369,2]
[352703808,1739256649084,-834.97,0.00011369,2]
[352703809,1739256649094,-500.0,0.00011369,2]
[352703810,1739256649104,-500.0,0.00011369,2]
[352703811,1739256649114,-500.0,0.00011369,2]
[352703812,1739256649125,-669.28,0.00011369,2]
[352703813,1739256649135,-598.13,0.00011369,2]
[352703814,1739256649145,-500.0,0.00011369,2]
[352703815,1739256649156,-500.0,0.00011369,2]
[352703816,1739256649166,-799.58,0.00011369,2]
[352703817,1739256649177,-800.52,0.00011369,2]
[352703818,1739256649187,-788.41,0.00011369,2]
[352703819,1739256649198,-849.35,0.00011369,2]
[352703820,1739256649211,-578.73,0.00011369,2]
[352703821,1739256649221,-500.0,0.00011369,2]
[352703822,1739256649231,-700.0,0.0001137,2]
[352703823,1739256649242,-1273.0,0.00011379,2]
[352703824,1739256649252,-2024.0,0.00011379,2]
[352703825,1739256649262,-150.429,0.00011379,2]
[352703826,1739256649272,-569.0,0.00011379,2]
[352703827,1739256649284,-638.0,0.00011379,2]
[352703828,1739256649295,-2953.0,0.00011379,2]
[352703829,1739256649305,-661.549,0.00011379,2]
[352703830,1739256649316,-539.0,0.00011379,2]
[352703831,1739256649327,-150.0,0.00011379,2]
[352703832,1739256649339,-565.394,0.00011379,2]
[352703833,1739256649350,-150.0,0.00011379,2]
[352703834,1739256649361,-150.0,0.00011379,2]
[352703835,1739256649372,-150.196,0.00011379,2]
[352703836,1739256649383,-3914.0,0.00011379,2]
[352703837,1739256649394,-1109.0,0.00011379,2]
[352703838,1739256649405,-150.084,0.00011379,2]
[352703839,1739256649417,-151.0,0.000114,2]
[352703840,1739256649428,-174.08611888,0.00011405,2]
[352703841,1739256649438,-3315.68710394,0.00011416,2]
[352703842,1739256649449,-1090.0,0.00011418,2]
[352703843,1739256649459,-1884.17256244,0.00011418,2]
[352703844,1739256649471,-150.0,0.00011426,2]
[352703845,1739256649481,-208.0,0.0001144,2]
[352703846,1739256649491,-151.94,0.00011458,2]
[352703847,1739256649501,-16848.0,0.00011479,2]
[352703848,1739256649511,-500.0,0.00011493,2]
[352703849,1739256649521,-150.0,0.00011494,2]
[352703850,1739256649531,-177.28456813,0.00011494,2]
[352703851,1739256649541,-150.0,0.00011494,2]
[352703852,1739256649550,-150.0,0.00011494,2]
[352703853,1739256649560,-150.0,0.00011494,2]
[352703854,1739256649570,-2650.59409803,0.00011494,2]
[352703855,1739256649579,-1229.59085875,0.00011494,2]
[352703856,1739256649589,-57004.58668502,0.00011494,2]
[352703857,1739256649599,-6040.72123503,0.00011494,2]
[352703858,1739256649608,-250.38675486,0.00011498,2]
[352703859,1739256649618,-500.0,0.00011498,2]
[352703860,1739256649627,-248.54458418,0.00011498,2]
[352703861,1739256649636,-500.0,0.00011498,2]
[352703862,1739256649646,-150.0,0.00011498,2]
[352703863,1739256649655,-1796.0,0.00011498,2]
[352703864,1739256649666,-166.897763,0.000115,2]
[352703865,1739256649727,-500.0,0.00011503,2]
[352703866,1739256649737,-500.0,0.00011503,2]
[352703867,1739256649746,-658.88,0.00011503,2]
[352703868,1739256649756,-1809.24,0.00011503,2]
[352703869,1739256649765,-623.279359,0.00011503,2]
[352703870,1739256649776,-974.03,0.00011503,2]
[352703871,1739256649786,-1158.19,0.00011503,2]
[352703872,1739256649795,-679.751589,0.00011503,2]
[352703873,1739256649805,-758.82,0.00011503,2]
[352703874,1739256649814,-1444.09,0.00011503,2]
[352703875,1739256649823,-500.0,0.00011503,2]
[352703876,1739256649832,-1389.32,0.00011503,2]
[352703877,1739256649842,-730.21,0.00011503,2]
[352703878,1739256649851,-500.0,0.00011503,2]
[352703879,1739256649861,-1438.42,0.00011503,2]
[352703880,1739256649870,-572.58142733,0.00011503,2]
[352703881,1739256649879,-1244.9,0.00011503,2]
[352703882,1739256649889,-627.66,0.00011503,2]
[352703883,1739256649898,-1074.24,0.00011503,2]
[352703884,1739256649908,-1290.17,0.00011503,2]
[352703885,1739256649917,-925.63,0.00011503,2]
[352703886,1739256649927,-229.89663992,0.00011503,2]
[352703887,1739256649936,-1899.45,0.00011503,2]
[352703888,1739256649946,-500.0,0.00011503,2]
[352703889,1739256649955,-2272.64,0.00011503,2]
[352703890,1739256649964,-893.41,0.00011503,2]
[352703891,1739256649974,-2267.95,0.00011503,2]
[352703892,1739256649983,-1106.55,0.00011503,2]
[352703893,1739256649993,-990.86,0.00011503,2]
[352703894,1739256650002,-1297.8,0.00011503,2]
[352703895,1739256650011,-1916.57,0.00011503,2]
[352703896,1739256650020,-1586.65,0.00011503,2]
[352703897,1739256650030,-1548.08,0.00011503,2]
[352703898,1739256650039,-574.92,0.00011503,2]
[352703899,1739256650049,-5302.17,0.00011503,2]
[352703900,1739256650058,-1914.5,0.00011503,2]
[352703901,1739256650067,-2010.92,0.00011503,2]
[352703902,1739256650076,-1512.97,0.00011503,2]
[352703903,1739256650085,-500.0,0.00011503,2]
[352703904,1739256650094,-2528.13,0.00011503,2]
[352703905,1739256650104,-1261.27,0.00011503,2]
[352703906,1739256650113,-2590.74,0.00011503,2]
[352703907,1739256650121,-1090.46,0.00011503,2]
[352703908,1739256650131,-3859.16,0.00011503,2]
[352703909,1739256650141,-2165.26,0.00011503,2]
[352703910,1739256650149,-1434.24398354,0.00011503,2]
[352703911,1739256650192,-231.78601646,0.00011503,2]
[352703912,1739256650200,-118.34521276,0.00011503,2]
[352703913,1739256650215,-924.52478724,0.00011503,2]
[352703914,1739256650224,-195.02845906,0.00011503,2]
[352703915,1739256650233,-1602.61354268,0.00011503,2]
[352703916,1739256650244,-199.07645732,0.00011503,2]
[352703917,1739256650253,-321.30506951,0.00011503,2]
[352703918,1739256650277,-178.69493049,0.00011503,2]
[352703919,1739256650286,-73.49679266,0.00011503,2]
[352703920,1739256650296,-287.78950778,0.00011503,2]
[352703921,1739256650307,-631.77499958,0.00011503,2]
[352703922,1739256650359,-1181.12,0.00011231,2]
[352703923,1739256650368,-1901.04869998,0.00011503,2]
[352703924,1739256650378,-2294.76,0.00011503,2]
[352703925,1739256650387,-1062.27,0.00011503,2]
[352703926,1739256650397,-1706.6,0.00011503,2]
[352703927,1739256650406,-755.16,0.00011503,2]
[352703928,1739256650416,-500.0,0.00011503,2]
[352703929,1739256650426,-548.88,0.00011503,2]
[352703930,1739256650435,-1095.38,0.00011503,2]
[352703931,1739256650445,-500.0,0.00011503,2]
[352703932,1739256650455,-1127.78,0.00011503,2]
[352703933,1739256650464,-500.0,0.00011503,2]
[352703934,1739256650474,-762.7,0.00011503,2]
[352703935,1739256650483,-1261.59,0.00011503,2]
[352703936,1739256650492,-500.0,0.00011503,2]
[352703937,1739256650501,-500.0,0.00011503,2]
[352703938,1739256650511,-858.21,0.00011504,2]
[352703939,1739256650520,-500.0,0.00011504,2]
[352703940,1739256650529,-725.13,0.00011504,2]
[352703941,1739256650539,-781.16,0.00011504,2]
[352703942,1739256650548,-500.0,0.00011504,2]
[352703943,1739256650558,-591.43,0.00011504,2]
[352703944,1739256650567,-670.81,0.00011504,2]
[352703945,1739256650576,-749.55,0.00011504,2]
[352703946,1739256650586,-500.0,0.00011504,2]
[352703947,1739256650595,-731.98,0.00011504,2]
[352703948,1739256650604,-500.0,0.00011504,2]
[352703949,1739256650613,-831.08,0.00011504,2]
[352703950,1739256650623,-825.53,0.00011504,2]
[352703951,1739256650633,-500.0,0.00011504,2]
[352703952,1739256650643,-543.27,0.00011504,2]
[352703953,1739256650653,-505.31,0.00011504,2]
[352703954,1739256650662,-722.81,0.00011504,2]
[352703955,1739256650673,-951.01,0.00011504,2]
[352703956,1739256650684,-477.35730302,0.00011504,2]
[352703957,1739256650699,-102.27269698,0.00011504,2]
[352703958,1739256650708,-903.23,0.00011504,2]
[352703959,1739256650718,-573.98,0.00011504,2]
[352703960,1739256650727,-747.88,0.00011504,2]
[352703961,1739256650738,-791.14,0.00011504,2]
[352703962,1739256650748,-500.0,0.00011504,2]
[352703963,1739256650756,-690.68,0.00011504,2]
[352703964,1739256650765,-500.0,0.00011504,2]
[352703965,1739256650776,-606.91,0.00011504,2]
[352703966,1739256650785,-500.0,0.00011504,2]
[352703967,1739256650795,-500.0,0.00011504,2]
[352703968,1739256650805,-1731.4,0.00011504,2]
[352703969,1739256650814,-637.22,0.00011504,2]
[352703970,1739256650824,-729.75730302,0.00011504,2]
[352703971,1739256650836,-885.72269698,0.00011504,2]
[352703972,1739256650845,-99.29159025,0.00011504,2]
[352703973,1739256650856,-427.79703899,0.00011504,2]
[352703975,1739256805649,-6716.4051,8.836e-05,2]
[352703976,1739256965277,151.7,7.682e-05,2]
[352703977,1739257041106,1000.0,8.092e-05,2]
[352703979,1739257278175,1998.6617236,8e-05,2]
[352703980,1739257320372,55510.13867504,8e-05,2]
[352703990,1739257542618,825.88,8.219e-05,2]
[352703991,1739257610366,-219.7441,8.836e-05,2]
[352703992,1739257610391,-2430.68,8.851e-05,2]
[352703993,1739257610414,-150.0,8.87e-05,2]
[352703994,1739257614019,193.3309,8.973e-05,2]
[352703999,1739257717747,-150.0,8.997e-05,2]
[352704000,1739257738957,912.0841,8.836e-05,2]
[352704003,1739257832163,-583.66,9.473e-05,2]
[352704004,1739257832173,-101.39424735,9.477e-05,2]
[352704005,1739257832185,-48.60575265,9.477e-05,2]
[352704006,1739257832194,-450.3214858,9.48e-05,2]
[352704007,1739257832207,-456.84406107,9.48e-05,2]
[352704008,1739257832219,-550.72445313,9.48e-05,2]
[352704009,1739257832228,-594.55,9.493e-05,2]
[352704010,1739257832238,-176.61,9.532e-05,2]
[352704011,1739257832247,-169.61,9.543e-05,2]
[352704012,1739257832256,-602.14764636,9.543e-05,2]
[352704013,1739257832265,-3778.0,9.562e-05,2]
[352704014,1739257832274,-1066.06,9.573e-05,2]
[352704015,1739257832283,-1000.0,9.584e-05,2]
[352704016,1739257832298,-154.41,9.586e-05,2]
[352704017,1739257832307,-730.12,9.618e-05,2]
[352704018,1739257832316,-154.41,9.634e-05,2]
[352704019,1739257832325,-9235.03252484,9.64e-05,2]
[352704020,1739257832337,-14664.96747516,9.64e-05,2]
[352704021,1739257832345,-3675.11,9.642e-05,2]
[352704022,1739257832355,-1287.91,9.658e-05,2]
[352704023,1739257832364,-500.0,9.703e-05,2]
[352704024,1739257832374,-500.0,9.87e-05,2]
[352704025,1739257832383,-150.0,9.897e-05,2]
[352704026,1739257832392,-1800.0,0.0001,2]
[352704027,1739257832401,-358.00548695,0.0001037,2]
[352704028,1739257832425,-818.79079229,0.0001037,2]
[352704029,1739257832444,-310.7802346,0.0001037,2]
[352704030,1739257832455,-185.97348616,0.0001037,2]
[352704031,1739257832464,-150.0,0.0001042,2]
[352704032,1739257832473,-436.16848674,0.00010453,2]
[352704033,1739257832484,-389.71151326,0.00010453,2]
[352704034,1739257832494,-150.0,0.00010544,2]
[352704035,1739257832503,-594.55,0.0001068,2]
[352704036,1739257832512,-1000.0,0.00010782,2]
[352704037,1739257832521,-150.0,0.00010825,2]
[352704038,1739257832530,-150.0,0.00010825,2]
[352704039,1739257832539,-150.0,0.00010825,2]
[352704040,1739257832548,-200.0,0.00010883,2]
[352704041,1739257832557,-150.0,0.00010925,2]
[352704042,1739257832567,-431.83725236,0.00010974,2]
[352704043,1739257832576,-150.0,0.00011025,2]
[352704044,1739257832586,-150.0,0.00011065,2]
[352704045,1739257832595,-500.0,0.00011092,2]
[352704046,1739257832604,-177.42746498,0.00011092,2]
[352704047,1739257832614,-500.0,0.00011092,7]
[352704048,1739257832623,-500.0,0.00011092,2]
[352704049,1739257832633,-500.0,0.00011092,2]
[352704050,1739257832642,-500.0,0.00011092,2]
[352704051,1739257832651,-500.0,0.00011092,2]
[352704052,1739257832663,-500.0,0.00011092,2]
[352704053,1739257832676,-500.0,0.00011092,2]
[352704055,1739257832686,-500.0,0.00011092,2]
[352704057,1739257832695,-500.0,0.00011092,2]
[352704058,1739257832704,-500.0,0.00011092,2]
[352704059,1739257832713,-500.0,0.00011092,2]
[352704060,1739257832722,-500.0,0.00011092,2]
[352704062,1739257832732,-500.0,0.00011092,2]
[352704064,1739257832741,-500.0,0.00011092,2]
[352704065,1739257832750,-500.0,0.00011092,2]
[352704066,1739257832759,-500.0,0.00011092,2]
[352704067,1739257832768,-561.24,0.00011092,2]
[352704068,1739257832778,-500.0,0.00011092,2]
[352704070,1739257832787,-500.0,0.00011092,2]
[352704072,1739257832796,-500.0,0.00011092,2]
[352704074,1739257832806,-232.59546711,0.00011092,2]
[352704076,1739257832814,-381.76386103,0.00011092,2]
[352704079,1739257832830,-118.23613897,0.00011092,2]
[352704080,1739257832839,-500.0,0.00011092,2]
[352704082,1739257832848,-500.0,0.00011092,2]
[352704084,1739257832857,-500.0,0.00011092,2]
[352704086,1739257832866,-500.0,0.00011092,2]
[352704087,1739257832875,-500.0,0.00011092,2]
[352704088,1739257832885,-500.0,0.00011092,2]
[352704089,1739257832893,-256.18956834,0.00011092,2]
[352704090,1739257832903,-500.0,0.00011092,2]
[352704091,1739257832911,-500.0,0.00011092,2]
[352704092,1739257832920,-500.0,0.00011092,2]
[352704093,1739257832929,-500.0,0.00011092,2]
[352704094,1739257832938,-500.0,0.00011092,2]
[352704095,1739257832947,-500.0,0.00011092,2]
[352704096,1739257832956,-500.0,0.00011092,2]
[352704097,1739257832967,-500.0,0.00011092,2]
[352704098,1739257832976,-500.0,0.00011092,2]
[352704099,1739257832986,-500.0,0.00011092,2]
[352704100,1739257832996,-500.0,0.00011092,2]
[352704101,1739257833005,-500.0,0.00011092,2]
[352704102,1739257833015,-500.0,0.00011092,2]
[352704103,1739257833025,-500.0,0.00011092,2]
[352704104,1739257833036,-533.71,0.00011092,2]
[352704105,1739257833045,-500.0,0.00011092,2]
[352704106,1739257833055,-500.0,0.00011092,2]
[352704107,1739257833065,-589.99464876,0.00011092,2]
[352704108,1739257833075,-500.0,0.00011092,2]
[352704109,1739257833084,-500.0,0.00011092,2]
[352704110,1739257833097,-500.0,0.00011092,2]
[352704111,1739257833107,-500.0,0.00011092,2]
[352704112,1739257833116,-500.0,0.00011092,2]
[352704113,1739257833126,-500.0,0.00011092,2]
[352704114,1739257833135,-500.0,0.00011092,2]
[352704115,1739257833144,-502.08161807,0.00011092,2]
[352704116,1739257833153,-500.0,0.00011092,2]
[352704117,1739257833163,-500.0,0.00011092,2]
[352704118,1739257833175,-500.0,0.00011092,2]
[352704119,1739257833185,-500.0,0.00011092,2]
[352704120,1739257833195,-500.0,0.00011092,2]
[352704121,1739257833205,-500.0,0.00011092,2]
[352704122,1739257833215,-500.0,0.00011092,2]
[352704123,1739257833427,-500.0,0.00011092,2]
[352704124,1739257833437,-525.74,0.00011092,2]
[352704125,1739257833446,-500.0,0.00011092,2]
[352704126,1739257833456,-500.0,0.00011092,2]
[352704127,1739257833465,-500.0,0.00011092,2]
[352704128,1739257833475,-500.0,0.00011092,2]
[352704129,1739257833484,-500.0,0.00011092,2]
[352704130,1739257833494,-500.0,0.00011092,2]
[352704131,1739257833503,-500.0,0.00011092,2]
[352704132,1739257833512,-500.0,0.00011092,2]
[352704133,1739257833521,-500.0,0.00011092,2]
[352704134,1739257833530,-500.0,0.00011092,2]
[352704135,1739257833539,-549.95,0.00011092,2]
[352704136,1739257833549,-500.0,0.00011092,2]
[352704137,1739257833558,-645.14,0.00011092,2]
[352704138,1739257833567,-500.0,0.00011092,2]
[352704139,1739257833576,-500.0,0.00011092,2]
[352704140,1739257833585,-500.0,0.00011092,2]
[352704141,1739257833595,-594.93568912,0.00011092,2]
[352704142,1739257833604,-500.0,0.00011092,2]
[352704143,1739257833613,-500.0,0.00011092,2]
[352704144,1739257833622,-500.0,0.00011092,2]
[352704145,1739257833632,-500.0,0.00011092,2]
[352704146,1739257833642,-248.68412005,0.00011092,2]
[352704147,1739257833652,-500.0,0.00011092,2]
[352704148,1739257833661,-500.0,0.00011092,2]
[352704149,1739257833670,-695.81,0.00011092,2]
[352704150,1739257833680,-500.0,0.00011092,2]
[352704151,1739257833690,-500.0,0.00011092,2]
[352704152,1739257833699,-557.73,0.00011092,2]
[352704153,1739257833709,-500.0,0.00011092,2]
[352704154,1739257833718,-500.0,0.00011092,2]
[352704155,1739257833727,-500.0,0.00011092,2]
[352704156,1739257833737,-666.31,0.00011092,2]
[352704157,1739257833746,-667.1,0.00011092,2]
[352704158,1739257833755,-677.84,0.00011092,2]
[352704159,1739257833764,-733.68,0.00011092,2]
[352704160,1739257833774,-503.11,0.00011092,2]
[352704161,1739257833783,-500.0,0.00011092,2]
[352704162,1739257833792,-500.0,0.00011092,2]
[352704163,1739257833803,-757.22,0.00011092,2]
[352704164,1739257833812,-500.0,0.00011092,2]
[352704165,1739257833821,-768.02,0.00011092,2]
[352704166,1739257833831,-820.02,0.00011092,2]
[352704167,1739257833840,-502.9225238,0.00011093,2]
[352704168,1739257833850,-501.20683622,0.00011093,2]
[352704169,1739257833860,-512.98066892,0.00011093,2]
[352704170,1739257833869,-501.60271732,0.00011093,2]
[352704171,1739257833879,-500.0,0.00011093,2]
[352704172,1739257833888,-218.81774272,0.00011093,2]
[352704173,1739257833935,-282.6765471,0.00011093,2]
[352704174,1739257833945,-469.95914144,0.00011093,2]
[352704175,1739257833954,-467.47533306,0.00011093,2]
[352704176,1739257833964,-500.0,0.00011093,2]
[352704177,1739257833973,-500.0,0.00011093,2]
[352704178,1739257833982,-396.9667709,0.00011093,2]
[352704188,1739257838060,-500.0,0.00011092,2]
[352704189,1739257838069,-103.0332291,0.00011093,2]
[352704190,1739257838079,-500.0,0.00011093,2]
[352704191,1739257838092,-500.0,0.00011093,2]
[352704192,1739257838102,-441.0,0.00011096,2]
[352704193,1739257838112,-150.0,0.00011114,2]
[352704194,1739257838121,-2171.28098559,0.00011114,2]
[352704195,1739257838133,-1742.71901441,0.00011114,2]
[352704196,1739257838143,-1109.0,0.00011114,2]
[352704197,1739257838152,-150.0,0.00011125,2]
[352704198,1739257838161,-2320.98097283,0.00011127,2]
[352704199,1739257838171,-182.64227926,0.00011129,2]
[352704200,1739257838180,-150.0,0.00011145,2]
[352704201,1739257838190,-138.86725364,0.00011189,2]
[352704202,1739257838202,-11.13274636,0.00011189,2]
[352704203,1739257838211,-2069.781,0.00011209,2]
[352704204,1739257838220,-166.63,0.00011209,2]
[352704205,1739257838230,-1000.0,0.00011214,2]
[352704206,1739257838240,-250.0,0.00011221,2]
[352704207,1739257838249,-150.0,0.00011224,2]
[352704208,1739257838258,-150.0,0.00011226,2]
[352704209,1739257838267,-1579.97,0.00011227,2]
[352704210,1739257838277,-811.69,0.00011227,2]
[352704211,1739257838286,-906.67087958,0.00011227,2]
[352704213,1739257838304,-296.73912042,0.00011227,2]
[352704215,1739257838313,-445.60240828,0.00011227,2]
[352704218,1739257838331,-120.85724972,0.00011227,2]
[352704220,1739257838341,-804.3,0.00011227,2]
[352704221,1739257838350,-608.51,0.00011227,2]
[352704223,1739257838359,-409.80173346,0.00011227,2]
[352704233,1739257840180,-222.54826654,0.00011227,2]
[352704234,1739257840190,-443.50859684,0.00011227,2]
[352704235,1739257840202,-56.49140316,0.00011227,2]
[352704236,1739257840211,-1198.68,0.00011227,2]
[352704237,1739257840220,-1231.32,0.00011227,2]
[352704238,1739257840229,-895.2,0.00011227,2]
[352704239,1739257840238,-519.399466,0.00011227,2]
[352704240,1739257840247,-1582.87,0.00011227,2]
[352704241,1739257840257,-500.0,0.00011227,2]
[352704242,1739257840267,-1037.41,0.00011227,2]
[352704243,1739257840278,-1081.5,0.00011227,2]
[352704244,1739257840287,-523.05,0.00011227,2]
[352704245,1739257840297,-771.36,0.00011227,2]
[352704246,1739257840306,-465.83741097,0.00011227,2]
[352704247,1739257840317,-34.16258903,0.00011227,2]
[352704248,1739257840326,-744.51,0.00011227,2]
[352704249,1739257840335,-1075.14,0.00011227,2]
[352704250,1739257840344,-1889.96,0.00011227,2]
[352704251,1739257840353,-1664.13,0.00011227,2]
[352704252,1739257840363,-4418.48,0.00011227,2]
[352704253,1739257840371,-1736.04,0.00011227,2]
[352704254,1739257840380,-1597.15,0.00011227,2]
[352704255,1739257840389,-922.12,0.00011227,2]
[352704256,1739257840398,-1322.21,0.00011227,2]
[352704257,1739257840407,-500.0,0.00011227,2]
[352704258,1739257840417,-1595.42,0.00011227,2]
[352704259,1739257840425,-908.71,0.00011227,2]
[352704260,1739257840434,-1260.81,0.00011227,2]
[352704261,1739257840444,-156.75741097,0.00011227,2]
[352704262,1739257840463,-343.24258903,0.00011227,2]
[352704263,1739257840473,-677.28,0.00011227,2]
[352704264,1739257840482,-2158.95,0.00011227,2]
[352704265,1739257840491,-936.01395055,0.00011227,2]
[352704266,1739257840631,-739.75604945,0.00011227,2]
[352704267,1739257840640,-1804.38,0.00011227,2]
[352704268,1739257840649,-704.78,0.00011227,2]
[352704269,1739257840658,-1388.35,0.00011227,2]
[352704270,1739257840667,-2106.77,0.00011227,2]
[352704271,1739257840676,-869.06,0.00011227,2]
[352704272,1739257840685,-3215.96,0.00011227,2]
[352704273,1739257840695,-1422.16,0.00011227,2]
[352704274,1739257840704,-2548.85,0.00011227,2]